fUSD/lending_fUSD_20240925
["ID","MTS","AMOUNT","RATE_DAILY","PERIOD"]
[339084705,1727224243355,-2627.76022133,0.000129,2]
[339084706,1727224243366,-21986.27470492,0.000129,2]
[339084707,1727224243377,-10877.31968114,0.000129,2]
[339084708,1727224243389,-330.5,0.000129,2]
[339084709,1727224243399,-1201.87353666,0.000129,2]
[339084710,1727224243410,-1232.8790104,0.000129,2]
[339084711,1727224243421,-1325.20799028,0.000129,2]
[339084712,1727224243433,-1071.21456169,0.000129,2]
[339084713,1727224243444,-59932.79725244,0.000129,2]
[339084716,1727224245962,-502.90248128,0.000129,2]
[339084717,1727224245974,-746.22474826,0.000129,2]
[339084718,1727224245986,-6356.51117519,0.000129,2]
[339084719,1727224245999,-1644.15644672,0.000129,2]
[339084720,1727224246012,-402.31560741,0.000129,2]
[339084721,1727224246023,-446587.12589366,0.000129,2]
[339084722,1727224246035,-2630.82659408,0.000129,2]
[339084723,1727224246053,-8901.18086874,0.000129,2]
[339084724,1727224246064,-520.42458624,0.000129,2]
[339084725,1727224246075,-1499.90008,0.000129,2]
[339084726,1727224246087,-493.09011844,0.000129,2]
[339084727,1727224246098,-500.0,0.000129,2]
[339084728,1727224246110,-602.0,0.000129,2]
[339084729,1727224246121,-2457.38273895,0.000129,2]
[339084730,1727224246133,-1303.17693193,0.000129,2]
[339084731,1727224246145,-6653.2513662,0.000129,2]
[339084732,1727224246157,-984.31139991,0.000129,2]
[339084733,1727224246168,-1288.13934326,0.000129,2]
[339084734,1727224246180,-2049.27708235,0.000129,2]
[339084735,1727224246192,-4280.54195279,0.000129,2]
[339084736,1727224246203,-6676.43119304,0.000129,2]
[339084737,1727224246215,-320.98,0.000129,2]
[339084738,1727224246227,-3187.19048631,0.000129,2]
[339084739,1727224246239,-1046.63815051,0.000129,2]
[339084740,1727224246250,-53614.89159049,0.000129,2]
[339084741,1727224246261,-12979.47777581,0.000129,2]
[339084742,1727224246272,-2238.27476078,0.000129,2]
[339084743,1727224246283,-5285.28,0.000129,2]
[339084744,1727224246294,-747.40697802,0.000129,2]
[339084745,1727224246305,-505.14,0.000129,2]
[339084746,1727224246316,-292.064,0.000129,2]
[339084747,1727224246327,-371.08009368,0.000129,2]
[339084748,1727224246342,-573.16900945,0.000129,2]
[339084749,1727224246353,-2087.08,0.000129,2]
[339084750,1727224246364,-4778.87436627,0.000129,2]
[339084751,1727224246375,-1425.32463353,0.000129,2]
[339084752,1727224246386,-4855.58430813,0.000129,2]
[339084753,1727224246397,-12216.4,0.000129,2]
[339084754,1727224246408,-1434.79165165,0.000129,2]
[339084755,1727224246419,-569.62893995,0.000129,2]
[339084756,1727224246429,-3194.03000004,0.000129,2]
[339084757,1727224246440,-302.16242596,0.000129,2]
[339084758,1727224246452,-265.53699999,0.000129,2]
[339084759,1727224246463,-23938.32502418,0.000129,2]
[339084760,1727224246475,-1865.23497668,0.000129,2]
[339084761,1727224246485,-1010.28983316,0.000129,2]
[339084762,1727224246497,-324.95834368,0.000129,2]
[339084763,1727224246507,-22334.93310861,0.000129,2]
[339084764,1727224287137,1050.0,0.00011,2]
[339084765,1727224304520,215.1,0.00010959,2]
[339084766,1727224416205,200.0,0.00021922,120]
[339084767,1727224586681,200.09436985,0.00011105,2]
[339084768,1727224824037,160.12,0.00010959,2]
[339084769,1727224887810,337.11,9.778e-05,2]
[339084772,1727225239425,510.0,0.00021917,120]
[339084793,1727225356364,500.0,0.00022,120]
[339084794,1727225363983,500.0,0.00022,120]
[339084795,1727225370266,500.0,0.00022,120]
[339084798,1727225376790,500.0,0.00022,120]
[339084799,1727225382914,310.031271,0.00022,120]
[339084812,1727225432262,-172.37,0.00011384,2]
[339084813,1727225432272,-5875.045459,0.00011404,2]
[339084814,1727225432281,-1729.54386111,0.00011462,2]
[339084815,1727225432291,-151.62886511,0.00011589,2]
[339084816,1727225432300,-23900.0,0.00011619,2]
[339084817,1727225432310,-542.84,0.0001164,2]
[339084818,1727225432319,-250.0,0.00011665,2]
[339084819,1727225432329,-301.5,0.00011683,2]
[339084820,1727225432338,-300.0,0.0001169,2]
[339084821,1727225432348,-2000.0,0.00011691,2]
[339084822,1727225432368,-170.97,0.00011692,2]
[339084823,1727225432377,-1207.33,0.00011708,2]
[339084824,1727225432386,-2263.71,0.00011708,2]
[339084825,1727225432395,-218.86,0.00011715,2]
[339084826,1727225432404,-250.0,0.00011725,2]
[339084827,1727225432413,-275.24,0.00011731,2]
[339084828,1727225432423,-170.1,0.00011821,2]
[339084829,1727225432433,-172.37,0.00011825,2]
[339084830,1727225432443,-9635.59,0.00011834,2]
[339084831,1727225432453,-1000.0,0.00011841,2]
[339084832,1727225432464,-337.11,0.00012041,2]
[339084833,1727225432473,-150.0,0.00012625,2]
[339084834,1727225432483,-1505.91836134,0.00012642,2]
[339084835,1727225432492,-150.0,0.00012645,2]
[339084836,1727225432501,-150.0,0.00012651,2]
[339084837,1727225432511,-150.0,0.00012684,2]
[339084838,1727225432521,-150.0,0.00012742,2]
[339084839,1727225432533,-150.0,0.00012743,2]
[339084840,1727225432542,-150.0,0.00012769,2]
[339084841,1727225432551,-727.0,0.00012771,2]
[339084842,1727225432563,-150.0,0.0001278,2]
[339084843,1727225432574,-150.0,0.00012781,2]
[339084844,1727225432584,-150.0,0.00012785,2]
[339084845,1727225432593,-213.11250366,0.00012786,2]
[339084846,1727225432606,-150.0,0.00012786,2]
[339084847,1727225432615,-160.68838675,0.00012795,2]
[339084848,1727225432624,-1000.0,0.00012795,2]
[339084849,1727225432633,-1598.4904791,0.00012795,2]
[339084850,1727225432644,-2434.05004863,0.00012795,2]
[339084851,1727225432655,-466.78827227,0.00012795,2]
[339084853,1727225432665,-2736.9607,0.00012795,2]
[339084855,1727225432676,-160.68838672,0.00012796,2]
[339084857,1727225432686,-160.68838672,0.00012797,2]
[339084859,1727225432696,-272.3254622,0.00012798,2]
[339084861,1727225432706,-160.68838672,0.00012798,2]
[339084863,1727225432716,-160.68838672,0.00012799,2]
[339084865,1727225432725,-4907.17201865,0.000128,2]
[339084867,1727225432736,-11389.25828135,0.000128,2]
[339084869,1727225432745,-214.13293722,0.000128,2]
[339084870,1727225432754,-160.68838672,0.000128,2]
[339084872,1727225432763,-6342.388,0.000128,2]
[339084874,1727225432772,-170.53975439,0.000128,2]
[339084876,1727225432781,-170.53975439,0.000128,2]
[339084878,1727225432790,-170.53975439,0.000128,2]
[339084880,1727225432799,-170.53975439,0.000128,2]
[339084882,1727225432811,-170.53975439,0.000128,2]
[339084884,1727225432820,-171.03,0.000128,2]
[339084886,1727225432830,-380.43979999,0.000128,2]
[339084888,1727225432840,-380.43979999,0.000128,2]
[339084890,1727225432850,-380.43979999,0.000128,2]
[339084892,1727225432859,-380.43979999,0.000128,2]
[339084894,1727225432868,-380.43979999,0.000128,2]
[339084896,1727225432877,-380.43979999,0.000128,2]
[339084898,1727225432886,-794.50165144,0.000128,2]
[339084899,1727225432895,-380.43979999,0.000128,2]
[339084901,1727225432904,-380.43979999,0.000128,2]
[339084903,1727225432913,-380.43979999,0.000128,2]
[339084905,1727225432922,-380.43979999,0.000128,2]
[339084907,1727225432931,-380.43979999,0.000128,2]
[339084909,1727225432940,-380.43979999,0.000128,2]
[339084911,1727225432949,-380.43979999,0.000128,2]
[339084912,1727225432958,-380.43979999,0.000128,2]
[339084914,1727225432967,-380.43979999,0.000128,2]
[339084916,1727225432976,-380.43979999,0.000128,2]
[339084918,1727225432985,-380.43979999,0.000128,2]
[339084920,1727225432993,-380.43979999,0.000128,2]
[339084922,1727225433003,-380.43979999,0.000128,2]
[339084924,1727225433012,-380.93,0.000128,2]
[339084926,1727225433022,-387.36351473,0.000128,2]
[339084928,1727225433031,-351.60257615,0.000128,2]
[339084930,1727225433040,-351.60257615,0.000128,2]
[339084932,1727225433049,-351.60257615,0.000128,2]
[339084934,1727225433059,-351.60257615,0.000128,2]
[339084936,1727225433068,-351.60257615,0.000128,2]
[339084938,1727225433077,-351.60257615,0.000128,2]
[339084940,1727225433086,-351.60257615,0.000128,2]
[339084942,1727225433095,-351.60257615,0.000128,2]
[339084944,1727225433106,-351.60257615,0.000128,2]
[339084946,1727225433115,-351.60257615,0.000128,2]
[339084948,1727225433124,-351.60257615,0.000128,2]
[339084950,1727225433134,-351.60257615,0.000128,2]
[339084952,1727225433143,-351.60257615,0.000128,2]
[339084954,1727225433152,-351.60257615,0.000128,2]
[339084956,1727225433162,-351.60257615,0.000128,2]
[339084958,1727225433171,-351.60257615,0.000128,2]
[339084960,1727225433180,-351.60257615,0.000128,2]
[339084961,1727225433190,-351.60257615,0.000128,2]
[339084963,1727225433198,-351.60257615,0.000128,2]
[339084966,1727225433208,-352.1,0.000128,2]
[339084968,1727225433217,-421.35408527,0.000128,2]
[339084970,1727225433227,-1196.0,0.000128,2]
[339084972,1727225433236,-3013.54571257,0.000128,2]
[339084974,1727225433245,-412.05081194,0.000128,2]
[339084975,1727225433254,-397.23485996,0.000128,2]
[339084977,1727225433264,-150.0,0.00012802,2]
[339084979,1727225433273,-150.0,0.00012831,2]
[339084981,1727225433282,-150.0,0.00012836,2]
[339084983,1727225433292,-150.0,0.00012839,2]
[339084985,1727225433301,-150.0,0.00012841,2]
[339084987,1727225433310,-150.0,0.00012841,2]
[339084989,1727225433321,-150.0,0.00012842,2]
[339084992,1727225433331,-500.0,0.00012845,2]
[339084994,1727225433341,-150.0,0.0001285,2]
[339084996,1727225433352,-500.0,0.00012854,2]
[339084998,1727225433361,-150.0,0.00012863,2]
[339084999,1727225433370,-500.0,0.00012863,2]
[339085001,1727225433380,-155.17,0.00012866,2]
[339085003,1727225433389,-150.0,0.00012868,2]
[339085005,1727225433400,-500.0,0.00012872,2]
[339085007,1727225433409,-500.0,0.00012873,2]
[339085008,1727225433418,-500.0,0.00012873,2]
[339085009,1727225433427,-500.0,0.00012881,2]
[339085010,1727225433437,-448.0,0.00012887,2]
[339085011,1727225433445,-809.0,0.00012887,2]
[339085012,1727225433456,-5867.0,0.00012887,2]
[339085013,1727225433466,-150.0,0.00012887,2]
[339085014,1727225433475,-748.951,0.00012887,2]
[339085015,1727225433484,-2754.926,0.00012887,2]
[339085016,1727225433494,-500.0,0.00012889,2]
[339085017,1727225433505,-561.655,0.0001289,2]
[339085018,1727225433515,-166.398,0.0001289,2]
[339085019,1727225433524,-43625.99385053,0.00012895,2]
[339085020,1727225433537,-41841.59270817,0.00012895,2]
[339085021,1727225433546,-2915.46290005,0.00012895,2]
[339085022,1727225433557,-1049.26425165,0.00012895,2]
[339085023,1727225433567,-4005.64155605,0.00012895,2]
[339085024,1727225433577,-402.31913625,0.00012895,2]
[339085025,1727225433588,-6379.77272277,0.00012895,2]
[339085026,1727225433607,-1026.39824093,0.00012895,2]
[339085027,1727225433618,-252.8688456,0.00012895,2]
[339085028,1727225433628,-500.0,0.00012898,2]
[339085029,1727225433638,-186.34067264,0.00012899,2]
[339085030,1727225433647,-500.0,0.00012899,2]
[339085031,1727225433656,-500.68734814,0.00012899,2]
[339085032,1727225433666,-500.0,0.00012899,2]
[339085033,1727225433675,-1000.0,0.00012899,2]
[339085034,1727225433685,-1000.0,0.00012899,2]
[339085035,1727225433694,-1156.24032475,0.00012899,2]
[339085041,1727225438395,-843.75967525,0.00012899,2]
[339085042,1727225438404,-63082.23472779,0.000129,2]
[339085043,1727225438415,-644.68559983,0.000129,2]
[339085044,1727225438426,-1016.61,0.000129,2]
[339085045,1727225438437,-1715.6453042,0.000129,2]
[339085046,1727225438555,-37145.9829598,0.000129,2]
[339085047,1727225438567,-818.775,0.000129,2]
[339085048,1727225438612,-699.83488215,0.000129,2]
[339085049,1727225438665,-987.45743925,0.000129,2]
[339085050,1727225438676,-9247.2174918,0.000129,2]
[339085051,1727225438688,-820.5999,0.000129,2]
[339085052,1727225438721,-399.75817106,0.000129,2]
[339085053,1727225438732,-5677.67838395,0.000129,2]
[339085054,1727225438743,-1002.10263994,0.000129,2]
[339085055,1727225438754,-478.31959918,0.000129,2]
[339085089,1727225440174,-2041.58999799,0.000128,2]
[339085090,1727225440186,-458.41000201,0.000128,2]
[339085091,1727225440196,-224.19522983,0.000129,2]
[339085092,1727225440208,-1353.75559197,0.000129,2]
[339085093,1727225440219,-52314.45260923,0.000129,2]
[339085094,1727225440230,-213321.64464433,0.000129,2]
[339085095,1727225440239,-163305.30944184,0.000129,2]
[339085096,1727225440251,-2336.89922027,0.000129,2]
[339085097,1727225440288,-355.72425126,0.000129,2]
[339085098,1727225440299,-356.19588052,0.000129,2]
[339085099,1727225440310,-24912.89410395,0.000129,2]
[339085100,1727225440321,-1656.44460818,0.000129,2]
[339085101,1727225440334,-3895.58825898,0.000129,2]
[339085102,1727225440347,-711.3485025,0.000129,2]
[339085103,1727225440367,-320.84,0.000129,2]
[339085104,1727225440378,-2561.10542528,0.000129,2]
[339085105,1727225440391,-2414.47484465,0.000129,2]
[339085106,1727225440404,-3810.54013007,0.000129,2]
[339085108,1727225440415,-10211.77675085,0.000129,2]
[339085110,1727225440426,-398584.91864788,0.000129,2]
[339085112,1727225440435,-9220.95990014,0.000129,2]
[339085114,1727225440445,-39117.98635371,0.000129,2]
[339085117,1727225440464,-540.15952284,0.000129,2]
[339085119,1727225440475,-4626.59156538,0.000129,2]
[339085245,1727225443252,-674.16794245,0.000129,2]
[339085249,1727225443266,-311.7686698,0.000129,2]
[339085253,1727225443277,-773.9542217,0.000129,2]
[339085255,1727225443289,-305.67881732,0.000129,2]
[339085257,1727225443301,-571.571,0.000129,2]
[339085259,1727225443314,-1240.6631406,0.000129,2]
[339085261,1727225443326,-489.18296135,0.000129,2]
[339085262,1727225443337,-362.76485203,0.000129,2]
[339085263,1727225443348,-1082.91734936,0.000129,2]
[339085264,1727225443360,-6679.72932,0.000129,2]
[339085265,1727225443372,-373.5132,0.000129,2]
[339085266,1727225443566,-85419.82856533,0.000129,2]
[339085267,1727225443577,-12602.56263663,0.000129,2]
[339085268,1727225443589,-369.23897923,0.000129,2]
[339085269,1727225443600,-593.90282978,0.000129,2]
[339085270,1727225443613,-340.68338463,0.000129,2]
[339085271,1727225443624,-530.11986904,0.000129,2]
[339085272,1727225443636,-1267.53629767,0.000129,2]
[339085273,1727225443647,-463.3999995,0.000129,2]
[339085274,1727225443663,-15775.77915603,0.000129,2]
[339085275,1727225443682,-333.365006,0.000129,2]
[339085276,1727225443693,-396.00983307,0.000129,2]
[339085277,1727225443705,-574.40904998,0.000129,2]
[339085278,1727225443716,-484.33001,0.000129,2]
[339085279,1727225443728,-2285.82171714,0.000129,2]
[339085280,1727225443746,-2558.2578458,0.000129,2]
[339085281,1727225443758,-1668.02297108,0.000129,2]
[339085282,1727225443769,-993.12736041,0.000129,2]
[339085283,1727225443781,-7764.0017081,0.000129,2]
[339085284,1727225443792,-242992.47263957,0.000129,2]
[339085285,1727225443804,-1067.81353758,0.000129,2]
[339085286,1727225443814,-455.24917089,0.000129,2]
[339085287,1727225443826,-754.9399989,0.000129,2]
[339085288,1727225443837,-444.24779552,0.000129,2]
[339085289,1727225443849,-3265.01060924,0.000129,2]
[339085290,1727225443870,-58031.9297506,0.000129,2]
[339085291,1727225443881,-10992.66936184,0.000129,2]
[339085292,1727225443893,-684.93719709,0.000129,2]
[339085293,1727225443904,-1516.6,0.000129,2]
[339085294,1727225443915,-2467.1499995,0.000129,2]
[339085295,1727225443927,-7440.45079688,0.000129,2]
[339085296,1727225443938,-478.16699997,0.000129,2]
[339085297,1727225443949,-1000.0,0.000129,2]
[339085298,1727225443962,-529.685291,0.000129,2]
[339085299,1727225443977,-8739.00278943,0.000129,2]
[339085306,1727225446198,-1879.96359267,0.000129,2]
[339085307,1727225446236,-351297.2838038,0.000129,2]
[339085308,1727225446248,-392.18531531,0.000129,2]
[339085309,1727225446260,-4417.52516995,0.000129,2]
[339085310,1727225446271,-907.5,0.000129,2]
[339085311,1727225446283,-3614.48,0.000129,2]
[339085312,1727225446296,-555.0,0.000129,2]
[339085313,1727225446307,-38447.83808893,0.000129,2]
[339085314,1727225446319,-266.00601319,0.000129,2]
[339085315,1727225446330,-1417.56443875,0.000129,2]
[339085316,1727225446341,-2534.226,0.000129,2]
[339085317,1727225446352,-914.48554078,0.000129,2]
[339085318,1727225446366,-360.08234564,0.000129,2]
[339085319,1727225446379,-17614.77864084,0.000129,2]
[339085320,1727225446390,-2026.77504163,0.000129,2]
[339085321,1727225446401,-1325.98466,0.000129,2]
[339085322,1727225446420,-1546.58900404,0.000129,2]
[339085323,1727225446431,-45793.13413091,0.000129,2]
[339085324,1727225446442,-8200.69049466,0.000129,2]
[339085325,1727225446454,-1269.51983804,0.000129,2]
[339085326,1727225446468,-330.51247921,0.000129,2]
[339085327,1727225446479,-629.89200498,0.000129,2]
[339085328,1727225446490,-1030.327386,0.000129,2]
[339085329,1727225446503,-2735.70533876,0.000129,2]
[339085330,1727225446515,-2800.21661438,0.000129,2]
[339085331,1727225446678,-410.74422414,0.000129,2]
[339085332,1727225446690,-1189.02918722,0.000129,2]
[339085333,1727225446701,-581.02513369,0.000129,2]
[339085334,1727225446712,-10401.00682633,0.000129,2]
[339085335,1727225446723,-1224.9376738,0.000129,2]
[339085336,1727225446735,-1529.47956354,0.000129,2]
[339085337,1727225446746,-1326.68,0.000129,2]
[339085338,1727225446756,-832.13,0.000129,2]
[339085339,1727225446767,-508.07079341,0.000129,2]
[339085340,1727225446778,-891.2594219,0.000129,2]
[339085341,1727225466519,331.98,0.00010059,2]
[339085342,1727225482059,166.83,0.00010959,2]
[339085343,1727225511208,671.37487,0.00022,120]
[339085344,1727225555351,160.75272073,0.00022,120]
[339085351,1727225635129,-6006.87005568,0.00013,15]
[339085356,1727226089462,1050.0,0.00011,2]
[339085357,1727226173850,156.83,0.00010959,2]
[339085358,1727226223593,329.78,9.649e-05,2]
[339085359,1727226464719,510.0,0.00021917,120]
[339085376,1727226631439,-172.68,0.00011236,2]
[339085377,1727226631451,-201.77269143,0.00011246,2]
[339085378,1727226631461,-172.68,0.00011313,2]
[339085379,1727226631473,-300.0,0.00011322,2]
[339085380,1727226631484,-10309.2867375,0.00011323,2]
[339085381,1727226631495,-12169.62,0.00011335,2]
[339085382,1727226631506,-300.0,0.00011346,2]
[339085383,1727226631517,-174.1605,0.00011376,2]
[339085384,1727226631528,-13.01721401,0.000114,2]
[339085385,1727226631541,-159.66278599,0.000114,2]
[339085386,1727226631552,-2337.845,0.0001141,2]
[339085387,1727226631564,-250.0,0.00011423,2]
[339085388,1727226631576,-250.0,0.00011474,2]
[339085389,1727226631587,-150.0,0.00011474,2]
[339085390,1727226631598,-258.4,0.00011484,2]
[339085391,1727226631610,-2715.52,0.00011486,2]
[339085392,1727226631621,-243.87,0.00011486,2]
[339085393,1727226631632,-172.68,0.00011496,2]
[339085394,1727226631642,-450.0,0.00011502,2]
[339085395,1727226631653,-258.99,0.00011506,2]
[339085396,1727226631664,-250.0,0.00011506,2]
[339085397,1727226631675,-172.68,0.00011542,2]
[339085398,1727226631686,-1493.98,0.00011576,2]
[339085399,1727226631697,-150.0,0.00011589,2]
[339085400,1727226631709,-613.69,0.00011621,2]
[339085401,1727226631721,-1000.0,0.00011837,2]
[339085402,1727226631732,-276.0,0.00011859,2]
[339085403,1727226631744,-329.78,0.00011913,2]
[339085404,1727226631754,-645.63967,0.00012197,2]
[339085405,1727226631766,-179.314916,0.00012197,2]
[339085406,1727226631777,-195.711805,0.00012197,2]
[339085407,1727226631792,-161.403691,0.00012197,2]
[339085408,1727226631802,-1506.96,0.000122,2]
[339085409,1727226631812,-150.0,0.000122,2]
[339085410,1727226631824,-150.0,0.00012247,2]
[339085411,1727226631835,-854.7,0.00012247,2]
[339085412,1727226631846,-152.49,0.00012297,2]
[339085413,1727226631856,-645.63967,0.0001235,2]
[339085415,1727226631869,-420.0,0.00012438,2]
[339085417,1727226631881,-167.98,0.00012445,2]
[339085419,1727226631892,-645.63967,0.00012502,2]
[339085421,1727226631904,-645.63967,0.00012655,2]
[339085423,1727226631916,-150.0,0.00012697,2]
[339085426,1727226631927,-190.015,0.00012725,2]
[339085427,1727226631938,-150.0,0.00012729,2]
[339085428,1727226631950,-150.0,0.00012738,2]
[339085429,1727226631963,-150.0,0.00012739,2]
[339085430,1727226631975,-284.53941932,0.0001274,2]
[339085431,1727226631986,-150.0,0.00012749,2]
[339085432,1727226631997,-150.0,0.00012753,2]
[339085433,1727226632008,-150.0,0.0001277,2]
[339085434,1727226632021,-150.0,0.00012791,2]
[339085435,1727226632030,-2677.3116,0.00012799,2]
[339085436,1727226632041,-166.6091,0.00012799,2]
[339085437,1727226632051,-298.33,0.000128,2]
[339085438,1727226632060,-154.87143135,0.000128,2]
[339085439,1727226632070,-154.31128906,0.000128,2]
[339085440,1727226632080,-4746.25901427,0.000128,2]
[339085441,1727226632094,-143.94375381,0.000128,2]
[339085443,1727226632105,-156.75290499,0.000128,2]
[339085445,1727226632117,-156.75290499,0.000128,2]
[339085447,1727226632128,-156.75290499,0.000128,2]
[339085449,1727226632140,-156.75290499,0.000128,2]
[339085451,1727226632151,-156.75290499,0.000128,2]
[339085454,1727226632162,-156.75290499,0.000128,2]
[339085456,1727226632172,-157.25,0.000128,2]
[339085458,1727226632182,-407.95277724,0.000128,2]
[339085460,1727226632192,-407.95277724,0.000128,2]
[339085462,1727226632204,-407.95277724,0.000128,2]
[339085464,1727226632216,-407.95277724,0.000128,2]
[339085466,1727226632227,-407.95277724,0.000128,2]
[339085468,1727226632237,-407.95277724,0.000128,2]
[339085470,1727226632249,-407.95277724,0.000128,2]
[339085472,1727226632261,-407.95277724,0.000128,2]
[339085475,1727226632271,-407.95277724,0.000128,2]
[339085477,1727226632282,-407.95277724,0.000128,2]
[339085479,1727226632292,-407.95277724,0.000128,2]
[339085481,1727226632304,-407.95277724,0.000128,2]
[339085483,1727226632314,-407.95277724,0.000128,2]
[339085485,1727226632326,-407.95277724,0.000128,2]
[339085487,1727226632336,-407.95277724,0.000128,2]
[339085489,1727226632348,-407.95277724,0.000128,2]
[339085491,1727226632359,-407.95277724,0.000128,2]
[339085493,1727226632371,-407.95277724,0.000128,2]
[339085495,1727226632381,-407.95277724,0.000128,2]
[339085497,1727226632391,-408.45,0.000128,2]
[339085499,1727226632401,-943.52122414,0.000128,2]
[339085501,1727226632411,-391.87157475,0.000128,2]
[339085503,1727226632421,-287.5432498,0.000128,2]
[339085511,1727226632620,-104.32832495,0.000128,2]
[339085512,1727226632631,-391.87157475,0.000128,2]
[339085513,1727226632642,-391.87157475,0.000128,2]
[339085514,1727226632653,-391.87157475,0.000128,2]
[339085515,1727226632663,-391.87157475,0.000128,2]
[339085516,1727226632674,-391.87157475,0.000128,2]
[339085517,1727226632684,-391.87157475,0.000128,2]
[339085518,1727226632695,-391.87157475,0.000128,2]
[339085519,1727226632706,-391.87157475,0.000128,2]
[339085520,1727226632716,-391.87157475,0.000128,2]
[339085521,1727226632727,-391.87157475,0.000128,2]
[339085522,1727226632736,-236.56662811,0.000128,2]
[339085523,1727226632749,-155.30494664,0.000128,2]
[339085524,1727226632760,-391.87157475,0.000128,2]
[339085525,1727226632771,-391.87157475,0.000128,2]
[339085526,1727226632784,-391.87157475,0.000128,2]
[339085527,1727226632794,-391.87157475,0.000128,2]
[339085528,1727226632805,-391.87157475,0.000128,2]
[339085529,1727226632815,-391.87157475,0.000128,2]
[339085530,1727226632828,-392.37,0.000128,2]
[339085531,1727226632838,-160.36941333,0.000128,2]
[339085532,1727226632848,-621.1315058,0.000128,2]
[339085533,1727226632860,-1481.0,0.000128,2]
[339085534,1727226632871,-233.7876018,0.000128,2]
[339085535,1727226632881,-645.63967,0.00012807,2]
[339085536,1727226632891,-179.314916,0.00012807,2]
[339085537,1727226632902,-195.711805,0.00012807,2]
[339085538,1727226632913,-161.403691,0.00012807,2]
[339085539,1727226632925,-150.0,0.00012822,2]
[339085540,1727226632936,-943.52122414,0.00012824,2]
[339085541,1727226632946,-150.0,0.00012841,2]
[339085542,1727226632956,-150.0,0.00012843,2]
[339085543,1727226632967,-943.52122414,0.00012849,2]
[339085544,1727226632978,-449.324,0.00012871,2]
[339085545,1727226632988,-166.398,0.00012871,2]
[339085546,1727226632999,-150.0,0.00012871,2]
[339085547,1727226633010,-500.0,0.00012873,2]
[339085548,1727226633020,-943.52122414,0.00012873,2]
[339085549,1727226633031,-155.7112312,0.00012877,2]
[339085550,1727226633042,-178.95808705,0.00012899,2]
[339085551,1727226633053,-1000.0,0.00012899,2]
[339085552,1727226633063,-1000.0,0.00012899,2]
[339085553,1727226633074,-2000.0,0.00012899,2]
[339085554,1727226633084,-620.80833625,0.00012899,2]
[339085555,1727226633097,-600.0,0.00012899,2]
[339085556,1727226633109,-12300.00594959,0.00012899,2]
[339085557,1727226633121,-906.34494258,0.00012899,2]
[339085558,1727226633133,-11004.28371327,0.00012899,2]
[339085559,1727226633145,-361.8530531,0.00012899,2]
[339085560,1727226633157,-1704.1975227,0.00012899,2]
[339085561,1727226633169,-1156.65591601,0.00012899,2]
[339085562,1727226633181,-482.99531256,0.00012899,2]
[339085563,1727226633202,-727.73898001,0.00012899,2]
[339085564,1727226633214,-561.75930824,0.00012899,2]
[339085565,1727226637477,-500.0,0.00012873,2]
[339085566,1727226637488,-2944.51359154,0.00012899,2]
[339085569,1727226637503,-1200.0,0.00012899,2]
[339085571,1727226637514,-1046.4607471,0.00012899,2]
[339085573,1727226637526,-1952.74361478,0.00012899,2]
[339085576,1727226637538,-453.34351583,0.00012899,2]
[339085578,1727226637549,-705.3146958,0.00012899,2]
[339085580,1727226637560,-339.1733676,0.00012899,2]
[339085583,1727226637697,-862882.52386276,0.00012899,2]
[339085584,1727226637708,-178.95808704,0.00012899,2]
[339085585,1727226637718,-31895.26673701,0.000129,2]
[339085586,1727226637728,-788.30757023,0.000129,2]